[Event "1st Bella Italia International 2022"]
[Site "Lignano"]
[Date "2022.08.22"]
[Round "8.15"]
[White "Perossa, Nicolas"]
[Black "Della Pietra, Andrea"]
[Result "1-0"]
[ECO "C10"]
[WhiteElo "2107"]
[BlackElo "2172"]
[Annotator "RC"]
[PlyCount "68"]
[EventDate "2022.08.18"]
[EventCountry "ITA"]
[SourceTitle "playchess.com"]
[Source "ChessBase"]
[SourceQuality "1"]
[TimeControl "5400+30"]

1. e4 {[%emt 0:00:02]} e6 {[%emt 0:00:19]} 2. d4 {[%emt 0:00:07]} d5 {[%emt 0:00:04]} 3. Nc3 {[%emt 0:00:09]} Nc6 {[%emt 0:00:09]} 4. e5 {[%emt 0:00:20]} f6 {[%emt 0:00:36]} 5. Bb5 {[%emt 0:00:08]} Bd7 {[%emt 0:00:35]} 6. Nh3 {[%emt 0:07:23]} Qe7 {[%emt 0:09:17]} 7. O-O {[%emt 0:07:58]} O-O-O {[%emt 0:08:22]} 8. Rb1 {[%emt 0:12:49]} Qf7 {[%emt 0:19:52]} 9. Bxc6 {[%emt 0:01:23]} Bxc6 {[%emt 0:00:12]} 10. b4 {[%emt 0:04:04]} Be8 {[%emt 0:02:31]} 11. a4 {[%emt 0:08:34]} Ne7 {[%emt 0:22:37]} 12. b5 {[%emt 0:06:13]} Qh5 {[%emt 0:02:29]} 13. Qe1 {[%emt 0:07:48]} fxe5 {[%emt 0:00:32]} 14. dxe5 {[%emt 0:00:17]} d4 {[%emt 0:00:50]} 15. Ne4 {[%emt 0:12:20]} Qxe5 {[%emt 0:05:47]} 16. Bf4 {[%emt 0:00:45]} Qf5 {[%emt 0:00:51]} 17. Ng3 {[%emt 0:01:08]} Qd5 {[%emt 0:01:02]} 18. c4 {[%emt 0:04:29]} dxc3 {[%emt 0:07:42]} 19. Qxc3 {[%emt 0:00:16]} Qd7 {[%emt 0:00:08]} 20. Qa5 {[%emt 0:00:45]} Nd5 {[%emt 0:06:10]} 21. Qxa7 {[%emt 0:00:17]} Qf7 {[%emt 0:00:30]} 22. Be3 {[%emt 0:03:56]} Bd6 {[%emt 0:01:41]} 23. a5 {[%emt 0:11:49]} Kd7 {[%emt 0:02:16]} 24. Qxb7 {[%emt 0:00:27]} Ke7 {[%emt 0:01:27]} 25. Rfe1 {[%emt 0:02:24]} h6 {[%emt 0:01:13]} 26. Bg5+ {[%emt 0:03:30]} hxg5 {[%emt 0:01:09]} 27. Qxd5 {[%emt 0:00:23]} Bf4 {[%emt 0:04:04]} 28. Qc5+ {[%emt 0:00:26]} Kf6 {[%emt 0:00:23]} 29. Nxg5 {[%emt 0:00:49]} Bxg3 {[%emt 0:02:12]} 30. Nxf7 {[%emt 0:00:31]} Bxh2+ {[%emt 0:00:00]} 31. Kf1 {[%emt 0:00:14]} Bxf7 {[%emt 0:00:00]} 32. g3 {[%emt 0:00:21]} Rd5 {[%emt 0:00:21]} 33. Qc3+ {[%emt 0:02:05]} Kg6 {[%emt 0:00:26]} 34. Rb4 {[%emt 0:00:36]} Rg5 {[%emt 0:01:43]} 1-0

[Event "1st Bella Italia International 2022"]
[Site "Lignano"]
[Date "2022.08.22"]
[Round "8.16"]
[White "Haller, Quentin"]
[Black "Cristiani, Cesare"]
[Result "0-1"]
[ECO "A45"]
[WhiteElo "1995"]
[BlackElo "2006"]
[Annotator "NA RC"]
[PlyCount "98"]
[EventDate "2022.08.18"]
[EventCountry "ITA"]
[SourceTitle "playchess.com"]
[Source "ChessBase"]
[SourceQuality "1"]
[TimeControl "5400+30"]

1. d4 {[%emt 0:00:05]} Nf6 {[%emt 0:00:07]} 2. Bg5 {[%emt 0:00:07]} c5 {[%emt 0:00:08]} 3. Bxf6 {[%emt 0:00:13]} gxf6 {[%emt 0:00:10]} 4. d5 {[%emt 0:00:09]} Qb6 {[%emt 0:00:16]} 5. Qc1 {[%emt 0:00:39]} f5 {[%emt 0:00:12]} 6. c4 {[%emt 0:00:59]} Bg7 {[%emt 0:00:22]} 7. Nc3 {[%emt 0:00:13]} d6 {[%emt 0:00:58]} 8. e3 {[%emt 0:01:49]} Nd7 {[%emt 0:00:55]} 9. Nf3 {[%emt 0:00:55]} Ne5 {[%emt 0:04:56]} 10. Qc2 {[%emt 0:04:59]} Bd7 {[%emt 0:02:30]} 11. Nxe5 {[%emt 0:03:26]} Bxe5 {[%emt 0:00:10]} 12. f4 {[%emt 0:00:41]} Bf6 {[%emt 0:01:15]} 13. Bd3 {[%emt 0:03:54]} e6 {[%emt 0:01:23]} 14. O-O-O {[%emt 0:03:06]} Qa5 {[%emt 0:06:02]} 15. e4 {[%emt 0:06:33]} Bxc3 {[%emt 0:03:33]} 16. Qxc3 {[%emt 0:00:23]} Qxc3+ {[%emt 0:00:08]} 17. bxc3 {[%emt 0:00:07]} fxe4 {[%emt 0:00:09]} 18. Bxe4 {[%emt 0:02:00]} O-O-O {[%emt 0:00:37]} 19. dxe6 {[%emt 0:03:08]} Bxe6 {[%emt 0:00:14]} 20. Bd5 {[%emt 0:00:23]} Kc7 {[%emt 0:00:08]} 21. Rhe1 {[%emt 0:02:45]} Rhe8 {[%emt 0:01:45]} 22. h3 {[%emt 0:01:44]} Bxd5 {[%emt 0:00:23]} 23. cxd5 {[%emt 0:02:56]} b5 {[%emt 0:00:24]} 24. g4 {[%emt 0:01:06]} c4 {[%emt 0:01:18]} 25. g5 {[%emt 0:02:21]} Kb6 {[%emt 0:00:12]} 26. h4 {[%emt 0:00:55]} Kc5 {[%emt 0:00:10]} 27. h5 {[%emt 0:01:12]} a5 {[%emt 0:01:01]} 28. a3 {[%emt 0:01:33]} b4 {[%emt 0:03:43]} 29. axb4+ {[%emt 0:00:15]} axb4 {[%emt 0:00:08]} 30. cxb4+ {[%emt 0:00:07]} Kxb4 {[%emt 0:00:06]} 31. Kc2 {[%emt 0:01:01]} Kc5 {[%emt 0:07:25]} 32. f5 {[%emt 0:07:31]} Rxe1 {[%emt 0:02:14]} 33. Rxe1 {[%emt 0:00:09]} Kxd5 {[%emt 0:01:29]} 34. Re7 {[%emt 0:00:07]} Rg8 {[%emt 0:02:40]} 35. Rxf7 {[%emt 0:05:38]} Rxg5 {[%emt 0:00:09]} 36. h6 {[%emt 0:01:56]} Kd4 {[%emt 0:00:46]} 37. Rxh7 {[%emt 0:02:20]} Rxf5 {[%emt 0:00:13]} 38. Rg7 {[%emt 0:05:13]} Rf2+ {[%emt 0:00:31]} 39. Kd1 {[%emt 0:00:50]} Rh2 {[%emt 0:00:08]} 40. h7 {[%emt 0:00:07]} d5 {[%emt 0:00:07]} 41. Rg4+ {[%emt 0:00:26]} Kc5 {[%emt 0:01:55]} 42. Rg7 {[%emt 0:00:07]} c3 {[%emt 0:00:09]} 43. Ke1 {[%emt 0:03:25]} Kc4 {[%emt 0:00:47]} 44. Kd1 {[%emt 0:00:23]} d4 {[%emt 0:00:09]} 45. Rf7 {[%emt 0:01:32]} Rh1+ {[%emt 0:02:22]} 46. Ke2 {[%emt 0:00:07]} d3+ {[%emt 0:00:06]} 47. Ke3 {[%emt 0:00:41]} d2 {[%emt 0:00:31]} 48. Rd7 {[%emt 0:01:27]} Kb3 {[%emt 0:01:22]} 49. Ke2 {[%emt 0:03:24]} Kc2 {[%emt 0:00:13]} 0-1

[Event "1st Bella Italia International 2022"]
[Site "Lignano"]
[Date "2022.08.22"]
[Round "8.17"]
[White "Sala, Giulia"]
[Black "Colonetti, Fabio"]
[Result "0-1"]
[ECO "B90"]
[WhiteElo "1958"]
[BlackElo "2152"]
[Annotator "TA"]
[PlyCount "58"]
[EventDate "2022.08.18"]
[EventCountry "ITA"]
[SourceTitle "playchess.com"]
[Source "ChessBase"]
[SourceQuality "1"]
[TimeControl "5400+30"]

{[%evp 19,58,4,41,-60,-21,-48,-59,-50,-58,-57,-17,-350,-356,-337,-81,-332,-163,-158,-141,-306,-306,-489,-484,-493,-486,-467,-458,-539,-413,-387,-379,-1110,-638,-571,-569,-564,-566,-544,-538,-509,-355]} 1. e4 {[%emt 0:05:28]} c5 {[%emt 0:00:09]} 2. Nf3 {[%emt 0:00:07]} d6 {[%emt 0:00:07]} 3. d4 {[%emt 0:00:23]} cxd4 {[%emt 0:00:08]} 4. Nxd4 {[%emt 0:00:11]} Nf6 {[%emt 0:00:09]} 5. Nc3 {[%emt 0:00:03]} a6 {[%emt 0:00:06]} 6. Be3 {[%emt 0:00:26]} e5 {[%emt 0:00:11]} 7. Nb3 {[%emt 0:00:15]} Be6 {[%emt 0:00:09]} 8. f3 {[%emt 0:00:18]} Nbd7 {[%emt 0:00:31]} 9. Qd2 {[%emt 0:00:21]} b5 {[%emt 0:00:13][%cal Bb7b5,Bb5c4][%mdl 32]} 10. g4 {[%emt 0:00:40]} Nb6 {[%emt 0:01:02]} (10... b4 $5 {[%cal Rb4c3]} 11. Nd5 Bxd5 12. exd5 Nb6 $14) 11. Qf2 {[%emt 0:14:11] B90: Sicilian Najdorf: Unusual White 6th moves, 6 Be3 Ng4 and 6 Be3 e5.} (11. g5 $14 Nfd7 12. h4) 11... Nc4 {[%emt 0:02:40]} 12. Bxc4 {[%emt 0:00:18]} bxc4 {[%emt 0:01:10]} 13. Nd2 {[%emt 0:05:02] Black is slightly better.} Rb8 {[%emt 0:04:36]} 14. O-O-O {[%emt 0:00:38]} Qa5 {[%emt 0:03:17] [#] Threatens to win with ...d5.} (14... Be7 $5 {[%cal Rd8a5]}) 15. Rdf1 $146 {[%emt 0:15:40][%mdl 8192] Black converts the advantage convincingly.} (15. Ndb1 $1 $11) ({Predecessor:} 15. Ndb1 d5 16. exd5 Nxd5 17. Nxd5 Bxd5 18. Bd2 Qc5 19. Qxc5 Bxc5 20. Rhe1 O-O 21. Be3 Bxe3+ 22. Rxe3 {1-0 (51) Khmelnitsky,S (2305)-Vajda,S (2355) Bucharest 1997}) 15... d5 $19 {[%emt 0:26:21]} ({Not} 15... Qb4 $2 16. Nd1 $19) 16. exd5 {[%emt 0:08:59]} Bxd5 {[%emt 0:19:18]} (16... Nxd5 $19 {has better winning chances.} 17. Nxd5 (17. Nxc4 $2 Qb4 $19) 17... Bxd5) 17. g5 $2 {[%emt 0:18:22][%mdl 8192] [#]} (17. Ndb1 $17 {was called for.}) 17... Rxb2 $3 $40 {[%emt 0:13:19][%mdl 640] Black has strong attack.} 18. Ndb1 {[%emt 0:00:54]} Ba3 {[%emt 0:07:54] Black is much more active. The white rooks are badly placed.} 19. Kd1 $2 {[%emt 0:01:27]} (19. Nxa3 $17 Qxc3 20. Bc5) 19... Nh5 {[%emt 0:06:11][%cal Bf6h5,Bh5f4,Bf4d5,Bd5c3][%mdl 32]} 20. Bc1 {[%emt 0:02:40] [#]} (20. Qd2 $142 Be6 21. Ke2) 20... O-O $1 {[%emt 0:02:14][%cal Of8d8] aiming for ...Rd8!} 21. Bxb2 {[%emt 0:02:56]} Bxb2 {[%emt 0:00:10] This bishop pair is nice.} 22. Qe3 {[%emt 0:04:00]} Nf4 {[%emt 0:02:32]} 23. Rhg1 {[%emt 0:01:51]} Rd8 {[%emt 0:01:30]} 24. Ke1 {[%emt 0:00:30]} Be6 {[%emt 0:01:31] Hoping for ...Bf5.} 25. Rg3 $2 {[%emt 0:01:45]} (25. Kf2 Bf5 26. Kg3) 25... Nd5 {[%emt 0:00:38] Black is clearly winning.} 26. Qxe5 {[%emt 0:00:30]} Bxc3+ {[%emt 0:00:24]} 27. Nxc3 {[%emt 0:00:02]} Qxc3+ {[%emt 0:00:13]} 28. Qxc3 {[%emt 0:00:07]} Nxc3 {[%emt 0:00:03]} 29. f4 {[%emt 0:00:23]} Rd1+ {[%emt 0:00:24] Weighted Error Value: White=0.99/Black=0.71} 0-1

[Event "1st Bella Italia International 2022"]
[Site "Lignano"]
[Date "2022.08.22"]
[Round "8.18"]
[White "Tencati, Giuseppe"]
[Black "Olabe Odriozola, Eduardo"]
[Result "1/2-1/2"]
[ECO "A88"]
[WhiteElo "2055"]
[BlackElo "1946"]
[Annotator "NA RC"]
[PlyCount "106"]
[EventDate "2022.08.18"]
[EventCountry "ITA"]
[SourceTitle "playchess.com"]
[Source "ChessBase"]
[SourceQuality "1"]
[TimeControl "5400+30"]

1. d4 {[%emt 0:00:30]} f5 {[%emt 0:00:07]} 2. c4 {[%emt 0:00:00]} g6 {[%emt 0:00:08]} 3. g3 {[%emt 0:00:00]} Bg7 {[%emt 0:00:16]} 4. Bg2 {[%emt 0:00:00]} Nf6 {[%emt 0:02:14]} 5. Nc3 {[%emt 0:01:41]} d6 {[%emt 0:00:50]} 6. Nf3 {[%emt 0:00:46]} O-O {[%emt 0:00:25]} 7. O-O {[%emt 0:00:38]} c6 {[%emt 0:00:45]} 8. d5 {[%emt 0:00:55]} e5 {[%emt 0:02:04]} 9. dxe6 {[%emt 0:00:06]} Bxe6 {[%emt 0:00:07]} 10. b3 {[%emt 0:02:58]} Ne4 {[%emt 0:07:35]} 11. Nxe4 {[%emt 0:00:24]} fxe4 {[%emt 0:03:47]} 12. Nd4 {[%emt 0:00:18]} Bg4 {[%emt 0:05:39]} 13. Rb1 {[%emt 0:31:22]} Qa5 {[%emt 0:10:24]} 14. h3 {[%emt 0:08:50]} Bd7 {[%emt 0:03:52]} 15. a3 {[%emt 0:09:21]} Na6 {[%emt 0:02:53]} 16. Bb2 {[%emt 0:02:15]} e3 {[%emt 0:04:11]} 17. f4 {[%emt 0:03:10]} Rae8 {[%emt 0:00:58]} 18. b4 {[%emt 0:01:25]} Qd8 {[%emt 0:02:42]} 19. Nf3 {[%emt 0:02:34]} Bxb2 {[%emt 0:03:47]} 20. Rxb2 {[%emt 0:00:02]} Qf6 {[%emt 0:00:33]} 21. Qd4 {[%emt 0:09:48]} b6 {[%emt 0:05:15]} 22. Rd1 {[%emt 0:00:50]} c5 {[%emt 0:00:24]} 23. Qxf6 {[%emt 0:01:13]} Rxf6 {[%emt 0:00:02]} 24. b5 {[%emt 0:01:40]} Nc7 {[%emt 0:01:40]} 25. Ng5 {[%emt 0:00:32]} Bf5 {[%emt 0:04:22]} 26. Bc6 {[%emt 0:01:35]} Re7 {[%emt 0:01:21]} 27. Kg2 {[%emt 0:05:57]} h6 {[%emt 0:00:52]} 28. Nf3 {[%emt 0:00:03]} Be4 {[%emt 0:02:20]} 29. Bxe4 {[%emt 0:00:05]} Rxe4 {[%emt 0:00:02]} 30. Rc2 {[%emt 0:01:02]} d5 {[%emt 0:01:32]} 31. cxd5 {[%emt 0:00:10]} Nxb5 {[%emt 0:00:17]} 32. Rd3 {[%emt 0:01:32]} Rd6 {[%emt 0:01:06]} 33. a4 {[%emt 0:02:56]} Rxa4 {[%emt 0:09:07]} 34. Rxe3 {[%emt 0:00:36]} Rxd5 {[%emt 0:01:51]} 35. Re7 {[%emt 0:00:17]} Nd4 {[%emt 0:03:08]} 36. Rd2 {[%emt 0:00:34]} Nf5 {[%emt 0:00:01]} 37. Rxd5 {[%emt 0:02:18]} Nxe7 {[%emt 0:00:05]} 38. Rd7 {[%emt 0:00:07]} Kf7 {[%emt 0:00:28]} 39. Ne5+ {[%emt 0:00:17]} Ke6 {[%emt 0:00:03]} 40. Rc7 {[%emt 0:02:02]} Ra2 {[%emt 0:02:04]} 41. Kf2 {[%emt 0:00:44]} a5 {[%emt 0:01:33]} 42. Rb7 {[%emt 0:01:24]} Nd5 {[%emt 0:06:07]} 43. Ke1 {[%emt 0:01:44]} g5 {[%emt 0:00:16]} 44. e4 {[%emt 0:00:56]} gxf4 {[%emt 0:00:58]} 45. Nd3 {[%emt 0:03:39]} Nc3 {[%emt 0:05:25]} 46. Rxb6+ {[%emt 0:00:25]} Ke7 {[%emt 0:00:11]} 47. gxf4 {[%emt 0:01:12]} Nxe4 {[%emt 0:00:58]} 48. Rxh6 {[%emt 0:01:00]} c4 {[%emt 0:00:45]} 49. Ne5 {[%emt 0:00:27]} c3 {[%emt 0:00:48]} 50. Rc6 {[%emt 0:00:15]} Rh2 {[%emt 0:00:43]} 51. Kd1 {[%emt 0:02:40]} Rxh3 {[%emt 0:03:47]} 52. Kc2 {[%emt 0:00:01]} Rh1 {[%emt 0:03:49]} 53. Rc4 {[%emt 0:00:38]} Nd6 {[%emt 0:01:04]} 1/2-1/2

[Event "1st Bella Italia International 2022"]
[Site "Lignano"]
[Date "2022.08.22"]
[Round "8.19"]
[White "Marson, Roy"]
[Black "Giraldi, Edoardo"]
[Result "0-1"]
[ECO "C00"]
[WhiteElo "1959"]
[BlackElo "1909"]
[Annotator "NA RC"]
[PlyCount "86"]
[EventDate "2022.08.18"]
[EventCountry "ITA"]
[SourceTitle "playchess.com"]
[Source "ChessBase"]
[SourceQuality "1"]
[TimeControl "5400+30"]

1. e4 {[%emt 0:00:10]} c5 {[%emt 0:00:07]} 2. Nf3 {[%emt 0:00:14]} e6 {[%emt 0:00:16]} 3. d3 {[%emt 0:00:25]} Nc6 {[%emt 0:00:13]} 4. g3 {[%emt 0:00:37]} d5 {[%emt 0:00:13]} 5. Nbd2 {[%emt 0:00:32]} Nf6 {[%emt 0:00:48]} 6. Bg2 {[%emt 0:00:58]} Be7 {[%emt 0:00:48]} 7. O-O {[%emt 0:01:59]} Qc7 {[%emt 0:04:01]} 8. c3 {[%emt 0:03:41]} b6 {[%emt 0:03:13]} 9. Re1 {[%emt 0:02:05]} Bb7 {[%emt 0:01:39]} 10. Qc2 {[%emt 0:08:04]} O-O-O {[%emt 0:19:58]} 11. a3 {[%emt 0:06:57]} h6 {[%emt 0:19:03]} 12. e5 {[%emt 0:12:12]} Nd7 {[%emt 0:46:11]} 13. d4 {[%emt 0:00:22]} c4 {[%emt 0:00:00]} 14. b3 {[%emt 0:03:53]} cxb3 {[%emt 0:00:00]} 15. Nxb3 {[%emt 0:00:57]} Ba6 {[%emt 0:00:00]} 16. Nfd2 {[%emt 0:06:58]} Na5 {[%emt 0:00:00]} 17. Nxa5 {[%emt 0:02:44]} bxa5 {[%emt 0:00:00]} 18. Qa4 {[%emt 0:21:02]} Qxc3 {[%emt 0:00:00]} 19. Bb2 {[%emt 0:00:22]} Nb6 {[%emt 0:00:00]} 20. Bxc3 {[%emt 0:26:18]} Nxa4 21. Bxa5 {[%emt 0:00:00]} Rd7 {[%emt 0:00:00]} 22. Rec1+ {[%emt 0:00:00]} Kb8 {[%emt 0:00:00]} 23. Rab1+ {[%emt 0:00:00]} Rb7 {[%emt 0:00:00]} 24. Rxb7+ {[%emt 0:00:00]} Bxb7 {[%emt 0:00:00]} 25. Rc7 {[%emt 0:00:00]} Bd8 {[%emt 0:00:00]} 26. Rxf7 {[%emt 0:00:00]} Bxa5 {[%emt 0:00:00]} 27. Nb3 {[%emt 0:00:00]} Bb6 {[%emt 0:00:17]} 28. Bh3 {[%emt 0:00:00]} Nc3 {[%emt 0:01:22]} 29. Bxe6 {[%emt 0:00:00]} Ne2+ {[%emt 0:00:09]} 30. Kg2 {[%emt 0:00:00]} Nxd4 {[%emt 0:00:06]} 31. Nxd4 {[%emt 0:00:00]} Bxd4 {[%emt 0:00:09]} 32. f4 {[%emt 0:00:00]} Bc5 {[%emt 0:01:11]} 33. Rd7 {[%emt 0:00:00]} Bc8 {[%emt 0:00:18]} 34. Rxg7 {[%emt 0:00:44]} Bxe6 {[%emt 0:07:28]} 35. Rg6 {[%emt 0:01:18]} Bf5 {[%emt 0:00:00]} 36. Rf6 {[%emt 0:00:14]} Be4+ {[%emt 0:00:00]} 37. Kf1 {[%emt 0:00:25]} d4 {[%emt 0:00:00]} 38. e6 {[%emt 0:01:36]} Kc7 {[%emt 0:00:00]} 39. f5 {[%emt 0:01:27]} Rf8 {[%emt 0:00:00]} 40. e7 {[%emt 0:02:44]} Bxe7 {[%emt 0:00:00]} 41. Re6 {[%emt 0:00:05]} Bd3+ {[%emt 0:00:00]} 42. Ke1 {[%emt 0:00:09]} Bxa3 {[%emt 0:00:00]} 43. f6 {[%emt 0:01:33]} Bc4 {[%emt 0:00:00]} 0-1

[Event "1st Bella Italia International 2022"]
[Site "Lignano"]
[Date "2022.08.22"]
[Round "8.20"]
[White "Bordignon, Angelo"]
[Black "Montorsi, Matteo"]
[Result "1-0"]
[ECO "B07"]
[WhiteElo "2062"]
[BlackElo "2100"]
[Annotator "NA RC"]
[PlyCount "75"]
[EventDate "2022.08.18"]
[EventCountry "ITA"]
[SourceTitle "playchess.com"]
[Source "ChessBase"]
[SourceQuality "1"]
[TimeControl "5400+30"]

1. d4 {[%emt 0:00:02]} Nf6 {[%emt 0:00:06]} 2. Bf4 {[%emt 0:00:19]} g6 {[%emt 0:02:54]} 3. Nc3 {[%emt 0:00:15]} c5 {[%emt 0:01:58]} 4. dxc5 {[%emt 0:00:46]} Qa5 {[%emt 0:01:28]} 5. e4 {[%emt 0:00:34]} Bg7 {[%emt 0:15:30]} 6. Qd2 {[%emt 0:01:26]} Qxc5 {[%emt 0:05:16]} 7. f3 {[%emt 0:01:26]} d6 {[%emt 0:00:59]} 8. O-O-O {[%emt 0:01:13]} O-O {[%emt 0:01:59]} 9. Bh6 {[%emt 0:02:34]} Bxh6 {[%emt 0:05:47]} 10. Qxh6 {[%emt 0:00:05]} Qh5 {[%emt 0:00:15]} 11. Qd2 {[%emt 0:00:32]} Qa5 {[%emt 0:00:22]} 12. Kb1 {[%emt 0:02:38]} Kg7 {[%emt 0:02:49]} 13. g4 {[%emt 0:01:56]} Be6 {[%emt 0:05:38]} 14. h4 {[%emt 0:16:50]} h5 {[%emt 0:08:49]} 15. gxh5 {[%emt 0:06:55]} Nxh5 {[%emt 0:02:42]} 16. Nge2 {[%emt 0:02:17]} Nc6 {[%emt 0:02:46]} 17. f4 {[%emt 0:04:47]} b5 {[%emt 0:13:33]} 18. Qe3 {[%emt 0:09:17]} Bc4 {[%emt 0:08:04]} 19. Nc1 {[%emt 0:05:21]} Bxf1 {[%emt 0:03:52]} 20. Rdxf1 {[%emt 0:01:00]} b4 {[%emt 0:02:44]} 21. N3e2 {[%emt 0:02:31]} Qc5 {[%emt 0:00:30]} 22. Qd2 {[%emt 0:02:41]} Rac8 {[%emt 0:01:02]} 23. Rfg1 {[%emt 0:03:50]} Kh7 {[%emt 0:03:10]} 24. Rg5 {[%emt 0:03:41]} Qf2 {[%emt 0:02:42]} 25. Nd3 {[%emt 0:01:16]} Qf3 {[%emt 0:02:20]} 26. Rhg1 {[%emt 0:02:29]} Rg8 {[%emt 0:01:00]} 27. f5 {[%emt 0:19:23]} Ne5 {[%emt 0:01:49]} 28. Nd4 {[%emt 0:02:51]} Qxe4 {[%emt 0:00:58]} 29. Nf2 {[%emt 0:00:27]} Qf4 {[%emt 0:01:00]} 30. fxg6+ {[%emt 0:02:32]} fxg6 {[%emt 0:01:30]} 31. Qe2 {[%emt 0:02:06]} Qf7 {[%emt 0:01:36]} 32. Ne4 {[%emt 0:00:26]} Rcf8 {[%emt 0:00:41]} 33. Rxe5 {[%emt 0:00:32]} Qf4 {[%emt 0:00:30]} 34. Ng5+ {[%emt 0:00:18]} Kh8 {[%emt 0:00:34]} 35. Rxe7 {[%emt 0:00:30]} Ng7 {[%emt 0:00:35]} 36. Nde6 {[%emt 0:00:17]} Qf6 {[%emt 0:00:25]} 37. Rxg7 {[%emt 0:00:24]} Rxg7 {[%emt 0:00:09]} 38. Nxg7 {[%emt 0:00:12]} 1-0